[Event "*** Titled Tuesday Blitz"]
[Site "Chess.com"]
[Date "2021.03.30"]
[Round "5"]
[White "GAusal"]
[Black "Kostukov_Alex"]
[Result "0-1"]
[WhiteElo "2053"]
[BlackElo "2304"]
[TimeControl "180+1"]
[EndTime "10:56:26 PDT"]
[Termination "Kostukov_Alex won on time"]

1. d4 {[%clk 0:03:00.9]} 1... g6 {[%clk 0:02:52.7]} 2. Nc3 {[%clk 0:02:59.1]}
2... Bg7 {[%clk 0:02:44.6]} 3. Bf4 {[%clk 0:02:52]} 3... d6 {[%clk 0:02:40]} 4.
Qd2 {[%clk 0:02:51.9]} 4... e5 {[%clk 0:02:35.9]} 5. dxe5 {[%clk 0:02:41.5]}
5... dxe5 {[%clk 0:02:36.8]} 6. Qxd8+ {[%clk 0:02:40]} 6... Kxd8 {[%clk
0:02:35.9]} 7. O-O-O+ {[%clk 0:02:34.3]} 7... Nd7 {[%clk 0:02:35.6]} 8. Be3
{[%clk 0:02:26.3]} 8... c6 {[%clk 0:02:31.6]} 9. g3 {[%clk 0:02:26.1]} 9... f6
{[%clk 0:02:28.6]} 10. Bh3 {[%clk 0:02:25.3]} 10... Kc7 {[%clk 0:02:26.8]} 11.
Nf3 {[%clk 0:02:16.6]} 11... Bh6 {[%clk 0:02:26.2]} 12. Bxh6 {[%clk 0:02:15]}
12... Nxh6 {[%clk 0:02:26.2]} 13. Bxd7 {[%clk 0:02:13.9]} 13... Bxd7 {[%clk
0:02:26.2]} 14. Ne4 {[%clk 0:02:13.2]} 14... Rhf8 {[%clk 0:02:23.7]} 15. c4
{[%clk 0:02:10.4]} 15... Bf5 {[%clk 0:02:16.7]} 16. Nc5 {[%clk 0:02:04.1]} 16...
b6 {[%clk 0:02:09.8]} 17. Nb3 {[%clk 0:01:56.9]} 17... Bh3 {[%clk 0:02:05.8]}
18. c5 {[%clk 0:01:51.6]} 18... Ng4 {[%clk 0:01:57.8]} 19. Rd2 {[%clk
0:01:28.2]} 19... Nxf2 {[%clk 0:01:53.5]} 20. Re1 {[%clk 0:01:28]} 20... Ne4
{[%clk 0:01:53.3]} 21. Rd3 {[%clk 0:01:23.8]} 21... bxc5 {[%clk 0:01:47.5]} 22.
Nfd2 {[%clk 0:01:20.8]} 22... Nxd2 {[%clk 0:01:26.3]} 23. Nxd2 {[%clk
0:01:17.3]} 23... Rab8 {[%clk 0:01:13.1]} 24. Rc3 {[%clk 0:01:12]} 24... Rb5
{[%clk 0:00:56.9]} 25. Nc4 {[%clk 0:01:06.5]} 25... Be6 {[%clk 0:00:49.2]} 26.
Na3 {[%clk 0:01:00.8]} 26... Ra5 {[%clk 0:00:40.6]} 27. Kb1 {[%clk 0:00:59.3]}
27... Rb8 {[%clk 0:00:38.4]} 28. Ka1 {[%clk 0:00:56.8]} 28... Rb4 {[%clk
0:00:35.3]} 29. Rec1 {[%clk 0:00:56.2]} 29... Kd6 {[%clk 0:00:32.6]} 30. Rd1+
{[%clk 0:00:54.1]} 30... Rd4 {[%clk 0:00:32.2]} 31. Rdc1 {[%clk 0:00:53.3]}
31... h5 {[%clk 0:00:24.8]} 32. e3 {[%clk 0:00:53.3]} 32... Rd2 {[%clk
0:00:23.8]} 33. R3c2 {[%clk 0:00:50.4]} 33... Rxc2 {[%clk 0:00:21.9]} 34. Rxc2
{[%clk 0:00:50.1]} 34... e4 {[%clk 0:00:20.7]} 35. Nc4+ {[%clk 0:00:47]} 35...
Bxc4 {[%clk 0:00:20.3]} 36. Rxc4 {[%clk 0:00:47]} 36... Kd5 {[%clk 0:00:21.2]}
37. Rc2 {[%clk 0:00:46.1]} 37... Rb5 {[%clk 0:00:20.2]} 38. b3 {[%clk
0:00:45.7]} 38... Rb7 {[%clk 0:00:19.9]} 39. Rd2+ {[%clk 0:00:45.2]} 39... Ke5
{[%clk 0:00:18.5]} 40. Rc2 {[%clk 0:00:45.2]} 40... Kf5 {[%clk 0:00:17.7]} 41.
Rxc5+ {[%clk 0:00:44.2]} 41... Kg4 {[%clk 0:00:18]} 42. Rxc6 {[%clk 0:00:43.5]}
42... Rf7 {[%clk 0:00:18.2]} 43. Rc2 {[%clk 0:00:41.3]} 43... Kf3 {[%clk
0:00:18.5]} 44. Rc3 {[%clk 0:00:38.8]} 44... Rd7 {[%clk 0:00:18.5]} 45. Rc6
{[%clk 0:00:32]} 45... f5 {[%clk 0:00:17.9]} 46. Rxg6 {[%clk 0:00:28.7]} 46...
Kxe3 {[%clk 0:00:18]} 47. Rg5 {[%clk 0:00:28.9]} 47... Rd5 {[%clk 0:00:17.8]}
48. h3 {[%clk 0:00:27.2]} 48... Kf2 {[%clk 0:00:13]} 49. g4 {[%clk 0:00:22.7]}
49... hxg4 {[%clk 0:00:12.8]} 50. hxg4 {[%clk 0:00:22.8]} 50... e3 {[%clk
0:00:13.4]} 51. Rxf5+ {[%clk 0:00:11.8]} 51... Rxf5 {[%clk 0:00:13]} 52. gxf5
{[%clk 0:00:11.9]} 52... e2 {[%clk 0:00:13.9]} 53. f6 {[%clk 0:00:12.4]} 53...
e1=Q+ {[%clk 0:00:14.1]} 54. Kb2 {[%clk 0:00:11.7]} 54... Qe5+ {[%clk
0:00:14.1]} 0-1

[Event "*** Titled Tuesday Blitz"]
[Site "Chess.com"]
[Date "2021.03.30"]
[Round "5"]
[White "NicoChasin"]
[Black "tptagain"]
[Result "0-1"]
[WhiteElo "2614"]
[BlackElo "2822"]
[TimeControl "180+1"]
[EndTime "10:56:27 PDT"]
[Termination "tptagain won by resignation"]

1. e4 {[%clk 0:02:39.8]} 1... c6 {[%clk 0:02:57.7]} 2. d4 {[%clk 0:02:35.7]}
2... d5 {[%clk 0:02:58.1]} 3. e5 {[%clk 0:02:35.9]} 3... Bf5 {[%clk 0:02:57.8]}
4. h4 {[%clk 0:02:35.1]} 4... h5 {[%clk 0:02:57]} 5. Nf3 {[%clk 0:02:31.7]} 5...
e6 {[%clk 0:02:55.9]} 6. Bd3 {[%clk 0:02:31.3]} 6... Bxd3 {[%clk 0:02:41.5]} 7.
Qxd3 {[%clk 0:02:32.2]} 7... Qa5+ {[%clk 0:02:41.1]} 8. Bd2 {[%clk 0:02:31.7]}
8... Qa6 {[%clk 0:02:40.9]} 9. Ke2 {[%clk 0:02:30.7]} 9... f6 {[%clk 0:02:39.2]}
10. Qxa6 {[%clk 0:02:19.7]} 10... Nxa6 {[%clk 0:02:39.1]} 11. c3 {[%clk
0:02:15.6]} 11... Ne7 {[%clk 0:02:37.5]} 12. Na3 {[%clk 0:02:14.3]} 12... Ng6
{[%clk 0:02:34.3]} 13. Nc2 {[%clk 0:02:09.9]} 13... Be7 {[%clk 0:02:28.8]} 14.
Rae1 {[%clk 0:02:00.3]} 14... Kf7 {[%clk 0:02:22.6]} 15. Kd3 {[%clk 0:01:45.9]}
15... c5 {[%clk 0:02:12.6]} 16. g3 {[%clk 0:01:40]} 16... Rac8 {[%clk
0:02:11.3]} 17. exf6 {[%clk 0:01:26.6]} 17... gxf6 {[%clk 0:02:10.1]} 18. Re2
{[%clk 0:01:23.1]} 18... c4+ {[%clk 0:01:39.8]} 19. Ke3 {[%clk 0:01:22.9]} 19...
e5 {[%clk 0:01:27.6]} 20. dxe5 {[%clk 0:01:17.2]} 20... Bc5+ {[%clk 0:01:26]}
21. Nfd4 {[%clk 0:00:55.4]} 21... fxe5 {[%clk 0:01:24.9]} 22. Kf3 {[%clk
0:00:54.5]} 22... exd4 {[%clk 0:01:24.5]} 23. cxd4 {[%clk 0:00:55.4]} 23... Be7
{[%clk 0:01:17.8]} 24. Ne3 {[%clk 0:00:53.8]} 24... Nc7 {[%clk 0:01:16.3]} 25.
Nf5 {[%clk 0:00:52.6]} 25... Rhe8 {[%clk 0:01:13]} 26. Rhe1 {[%clk 0:00:50.3]}
26... Bf8 {[%clk 0:01:12.5]} 27. g4 {[%clk 0:00:43.7]} 27... hxg4+ {[%clk
0:01:12]} 28. Kxg4 {[%clk 0:00:44.4]} 28... Rxe2 {[%clk 0:01:12.1]} 29. Rxe2
{[%clk 0:00:45.3]} 29... Re8 {[%clk 0:01:11.6]} 30. Be3 {[%clk 0:00:45.5]} 30...
Re4+ {[%clk 0:01:10.2]} 31. f4 {[%clk 0:00:44.8]} 31... Ne6 {[%clk 0:01:06]} 32.
Ng3 {[%clk 0:00:43.7]} 32... Ngxf4 {[%clk 0:00:54.5]} 33. Re1 {[%clk 0:00:31.7]}
33... Nd3+ {[%clk 0:00:49.5]} 34. Nxe4 {[%clk 0:00:32.3]} 34... Nxe1 {[%clk
0:00:49.7]} 35. Nc3 {[%clk 0:00:32.3]} 35... Nc2 {[%clk 0:00:47.9]} 36. Nxd5
{[%clk 0:00:32.1]} 36... Nexd4 {[%clk 0:00:39.2]} 37. Bf2 {[%clk 0:00:31]} 37...
b5 {[%clk 0:00:38.6]} 38. h5 {[%clk 0:00:27.8]} 38... a5 {[%clk 0:00:38.1]} 39.
Nb6 {[%clk 0:00:23.9]} 39... Nc6 {[%clk 0:00:36.6]} 40. a4 {[%clk 0:00:23]}
40... bxa4 {[%clk 0:00:33.3]} 41. Nxc4 {[%clk 0:00:23.1]} 41... Bg7 {[%clk
0:00:31.8]} 42. Kf5 {[%clk 0:00:21]} 42... N2d4+ {[%clk 0:00:26.7]} 43. Ke4
{[%clk 0:00:20.9]} 43... Ke6 {[%clk 0:00:24.3]} 44. Nxa5 {[%clk 0:00:20.5]}
44... Nxa5 {[%clk 0:00:22.6]} 45. Bxd4 {[%clk 0:00:21.4]} 45... Bf8 {[%clk
0:00:22.2]} 46. Bc3 {[%clk 0:00:20.4]} 46... Nc6 {[%clk 0:00:22.3]} 47. Kd3
{[%clk 0:00:20.8]} 47... Kd5 {[%clk 0:00:22.7]} 48. Bd2 {[%clk 0:00:21.3]} 48...
Nb4+ {[%clk 0:00:22.4]} 49. Kc3 {[%clk 0:00:16.5]} 49... Kc5 {[%clk 0:00:20.9]}
50. Be3+ {[%clk 0:00:15.8]} 50... Kb5 {[%clk 0:00:21.1]} 51. Kd4 {[%clk
0:00:15.4]} 51... Nc6+ {[%clk 0:00:19.9]} 52. Kd5 {[%clk 0:00:15.4]} 52... Bg7
{[%clk 0:00:20.3]} 53. Bc1 {[%clk 0:00:14.4]} 53... Na5 {[%clk 0:00:20.7]} 54.
Ke6 {[%clk 0:00:14.2]} 54... Nc4 {[%clk 0:00:20.5]} 55. Kf7 {[%clk 0:00:14.5]}
55... Bd4 {[%clk 0:00:20.8]} 56. h6 {[%clk 0:00:14.3]} 56... Nxb2 {[%clk
0:00:21.1]} 57. Ke6 {[%clk 0:00:14.7]} 57... a3 {[%clk 0:00:21.1]} 58. Kd5
{[%clk 0:00:15.3]} 58... Bh8 {[%clk 0:00:21.1]} 59. h7 {[%clk 0:00:12.3]} 59...
a2 {[%clk 0:00:20.7]} 60. Bxb2 {[%clk 0:00:11.7]} 60... Bxb2 {[%clk 0:00:20]}
0-1

[Event "*** Titled Tuesday Blitz"]
[Site "Chess.com"]
[Date "2021.03.30"]
[Round "5"]
[White "FairChess_on_YouTube"]
[Black "Funo09"]
[Result "1-0"]
[WhiteElo "3009"]
[BlackElo "2759"]
[TimeControl "180+1"]
[EndTime "10:56:28 PDT"]
[Termination "FairChess_on_YouTube won on time"]

1. e4 {[%clk 0:03:00.9]} 1... Nf6 {[%clk 0:02:59.4]} 2. e5 {[%clk 0:02:59.9]}
2... Nd5 {[%clk 0:03:00]} 3. d4 {[%clk 0:02:59.8]} 3... Nb6 {[%clk 0:03:00.9]}
4. Nf3 {[%clk 0:02:56.5]} 4... d6 {[%clk 0:03:01.1]} 5. Be2 {[%clk 0:02:56]}
5... g6 {[%clk 0:03:01]} 6. O-O {[%clk 0:02:53.8]} 6... Bg7 {[%clk 0:03:01.5]}
7. exd6 {[%clk 0:02:43.7]} 7... cxd6 {[%clk 0:03:01]} 8. a4 {[%clk 0:02:43.6]}
8... a6 {[%clk 0:02:58.7]} 9. a5 {[%clk 0:02:42.3]} 9... N6d7 {[%clk 0:02:58.3]}
10. d5 {[%clk 0:02:35.6]} 10... O-O {[%clk 0:02:56.9]} 11. c4 {[%clk 0:02:31.6]}
11... Nc5 {[%clk 0:02:53.1]} 12. Ra3 {[%clk 0:02:28.7]} 12... Bf5 {[%clk
0:02:43.7]} 13. Nc3 {[%clk 0:02:17.1]} 13... b6 {[%clk 0:02:36.2]} 14. b4 {[%clk
0:02:11.1]} 14... Nb7 {[%clk 0:02:35.1]} 15. axb6 {[%clk 0:02:02.2]} 15... Qxb6
{[%clk 0:02:36]} 16. Be3 {[%clk 0:01:57]} 16... Qc7 {[%clk 0:02:18.2]} 17. Nd4
{[%clk 0:01:47.5]} 17... Bc8 {[%clk 0:02:18]} 18. Na4 {[%clk 0:01:18.2]} 18...
Nd7 {[%clk 0:02:09.1]} 19. Nc6 {[%clk 0:01:18.1]} 19... Re8 {[%clk 0:02:02.9]}
20. Bf3 {[%clk 0:01:04.4]} 20... Ne5 {[%clk 0:01:53.7]} 21. Nb6 {[%clk
0:00:59.5]} 21... Bf5 {[%clk 0:01:48.3]} 22. Nxa8 {[%clk 0:00:53.5]} 22... Rxa8
{[%clk 0:01:49.2]} 23. h3 {[%clk 0:00:38.3]} 23... Nxc4 {[%clk 0:01:46.8]} 24.
Rb3 {[%clk 0:00:35.1]} 24... Nd8 {[%clk 0:01:29.2]} 25. Bd4 {[%clk 0:00:30.7]}
25... Nxc6 {[%clk 0:01:20.2]} 26. Bxg7 {[%clk 0:00:30.7]} 26... N6e5 {[%clk
0:01:10.4]} 27. Bh6 {[%clk 0:00:28.2]} 27... f6 {[%clk 0:00:59.6]} 28. Be2
{[%clk 0:00:26]} 28... Nb6 {[%clk 0:00:58.6]} 29. Qd4 {[%clk 0:00:22.7]} 29...
Qb7 {[%clk 0:00:31.7]} 30. b5 {[%clk 0:00:10.8]} 30... a5 {[%clk 0:00:31.6]} 31.
Bd2 {[%clk 0:00:09.7]} 31... Kg7 {[%clk 0:00:27]} 32. Ra1 {[%clk 0:00:09.2]}
32... a4 {[%clk 0:00:25.7]} 33. Rba3 {[%clk 0:00:09]} 33... Bc2 {[%clk
0:00:23.1]} 34. Bd1 {[%clk 0:00:06.5]} 34... Bxd1 {[%clk 0:00:17.6]} 35. Rxd1
{[%clk 0:00:07.4]} 35... Nbc4 {[%clk 0:00:18]} 36. Ra2 {[%clk 0:00:05.7]} 36...
Qxb5 {[%clk 0:00:18.5]} 37. Bc3 {[%clk 0:00:05.5]} 37... Qb3 {[%clk 0:00:18.1]}
38. Rda1 {[%clk 0:00:05.6]} 38... a3 {[%clk 0:00:16.3]} 39. Kh2 {[%clk
0:00:04.9]} 39... g5 {[%clk 0:00:15.9]} 40. Re2 {[%clk 0:00:04.8]} 40... Rc8
{[%clk 0:00:14.1]} 41. h4 {[%clk 0:00:04.7]} 41... h6 {[%clk 0:00:13.9]} 42. h5
{[%clk 0:00:04.1]} 42... Kf7 {[%clk 0:00:13.8]} 43. Be1 {[%clk 0:00:03.9]} 43...
Nb2 {[%clk 0:00:13.2]} 44. Qe4 {[%clk 0:00:03.9]} 44... Kg7 {[%clk 0:00:12.3]}
45. Qf5 {[%clk 0:00:04.2]} 45... Rc4 {[%clk 0:00:10.3]} 46. Qe6 {[%clk
0:00:03.9]} 46... Rc7 {[%clk 0:00:10.5]} 47. f3 {[%clk 0:00:03.5]} 47... Nbd3
{[%clk 0:00:10.6]} 48. Bg3 {[%clk 0:00:03.5]} 48... Qc3 {[%clk 0:00:09.5]} 49.
Rb1 {[%clk 0:00:02.9]} 49... Nf7 {[%clk 0:00:07.8]} 50. Rb8 {[%clk 0:00:03]}
50... a2 {[%clk 0:00:06.1]} 51. Qf5 {[%clk 0:00:03.1]} 51... Nde5 {[%clk
0:00:02.8]} 52. Rxa2 {[%clk 0:00:03.5]} 52... Qc1 {[%clk 0:00:01.5]} 53. Raa8
{[%clk 0:00:03.3]} 1-0

[Event "*** Titled Tuesday Blitz"]
[Site "Chess.com"]
[Date "2021.03.30"]
[Round "5"]
[White "jaskol95"]
[Black "OhanyanEminChess"]
[Result "0-1"]
[WhiteElo "2420"]
[BlackElo "2685"]
[TimeControl "180+1"]
[EndTime "10:56:28 PDT"]
[Termination "OhanyanEminChess won on time"]

1. d4 {[%clk 0:03:00.9]} 1... Nf6 {[%clk 0:02:57.6]} 2. Bf4 {[%clk 0:03:00.2]}
2... c5 {[%clk 0:02:55.6]} 3. e3 {[%clk 0:02:56.1]} 3... cxd4 {[%clk 0:02:53.9]}
4. exd4 {[%clk 0:02:56]} 4... d5 {[%clk 0:02:54.4]} 5. Nd2 {[%clk 0:02:54.1]}
5... Nc6 {[%clk 0:02:55.1]} 6. c3 {[%clk 0:02:54]} 6... Bg4 {[%clk 0:02:55]} 7.
Qa4 {[%clk 0:02:41.5]} 7... e6 {[%clk 0:02:51.4]} 8. Ngf3 {[%clk 0:02:34.1]}
8... Bd6 {[%clk 0:02:48.3]} 9. Ba6 {[%clk 0:02:34.7]} 9... Bxf4 {[%clk
0:02:15.2]} 10. Bxb7 {[%clk 0:02:33.7]} 10... O-O {[%clk 0:02:15.9]} 11. Bxc6
{[%clk 0:02:28.4]} 11... Rb8 {[%clk 0:02:13.5]} 12. b4 {[%clk 0:02:22.2]} 12...
Bxf3 {[%clk 0:02:01.1]} 13. Nxf3 {[%clk 0:02:20.2]} 13... Ne4 {[%clk 0:02:01.6]}
14. Qb3 {[%clk 0:02:12.6]} 14... Rc8 {[%clk 0:01:35.8]} 15. b5 {[%clk
0:02:07.4]} 15... Qa5 {[%clk 0:01:35]} 16. O-O {[%clk 0:02:03.1]} 16... Nxc3
{[%clk 0:01:03.8]} 17. g3 {[%clk 0:01:57]} 17... Bd6 {[%clk 0:00:56.3]} 18. Ne5
{[%clk 0:01:37.8]} 18... Ne2+ {[%clk 0:00:50]} 19. Kg2 {[%clk 0:01:33.4]} 19...
Nxd4 {[%clk 0:00:50.5]} 20. Qe3 {[%clk 0:01:19.1]} 20... Nc2 {[%clk 0:00:36.1]}
21. Qe2 {[%clk 0:01:18.2]} 21... Nxa1 {[%clk 0:00:35.5]} 22. Rxa1 {[%clk
0:01:19.1]} 22... Bxe5 {[%clk 0:00:35.1]} 23. Qxe5 {[%clk 0:01:20]} 23... a6
{[%clk 0:00:32.2]} 24. a4 {[%clk 0:01:17.3]} 24... axb5 {[%clk 0:00:29]} 25.
axb5 {[%clk 0:01:18.2]} 25... Qc7 {[%clk 0:00:26.2]} 26. Qd4 {[%clk 0:01:13.4]}
26... Qd6 {[%clk 0:00:20.9]} 27. h4 {[%clk 0:01:08.7]} 27... Rxc6 {[%clk
0:00:20.8]} 28. bxc6 {[%clk 0:01:08.8]} 28... Qxc6 {[%clk 0:00:21.7]} 29. h5
{[%clk 0:01:06.2]} 29... Qc4 {[%clk 0:00:21.4]} 30. Qe5 {[%clk 0:00:39.1]} 30...
Qe4+ {[%clk 0:00:06.8]} 31. Qxe4 {[%clk 0:00:39.4]} 31... dxe4 {[%clk
0:00:07.7]} 32. Ra4 {[%clk 0:00:40]} 32... f5 {[%clk 0:00:07.3]} 33. Ra6 {[%clk
0:00:39.9]} 33... Kf7 {[%clk 0:00:06.8]} 34. g4 {[%clk 0:00:37.9]} 34... Re8
{[%clk 0:00:02.7]} 35. Kg3 {[%clk 0:00:36.2]} 35... g5 {[%clk 0:00:02.6]} 36.
hxg6+ {[%clk 0:00:20.9]} 36... Kxg6 {[%clk 0:00:01.9]} 37. Kf4 {[%clk
0:00:12.6]} 37... fxg4 {[%clk 0:00:02.2]} 38. Kxg4 {[%clk 0:00:10.2]} 38... Kf6
{[%clk 0:00:02.7]} 39. Kf4 {[%clk 0:00:10.3]} 39... h5 {[%clk 0:00:03.3]} 40.
Ra5 {[%clk 0:00:05.9]} 40... Rh8 {[%clk 0:00:02.6]} 41. Kxe4 {[%clk 0:00:05.5]}
41... h4 {[%clk 0:00:02.4]} 42. Ra1 {[%clk 0:00:06]} 42... Kg5 {[%clk
0:00:01.5]} 43. Kf3 {[%clk 0:00:05.9]} 43... Rf8+ {[%clk 0:00:01.1]} 44. Kg2
{[%clk 0:00:06.4]} 44... Rf4 {[%clk 0:00:01.8]} 45. Ra5+ {[%clk 0:00:06.2]}
45... Kf6 {[%clk 0:00:02.5]} 46. Ra8 {[%clk 0:00:06.3]} 46... Ke5 {[%clk
0:00:02.7]} 47. Ra5+ {[%clk 0:00:06.2]} 47... Kf6 {[%clk 0:00:02.5]} 48. Ra8
{[%clk 0:00:06.2]} 48... e5 {[%clk 0:00:02]} 49. Rf8+ {[%clk 0:00:05.7]} 49...
Kg5 {[%clk 0:00:02.6]} 50. Rg8+ {[%clk 0:00:06.2]} 50... Kf5 {[%clk 0:00:03.2]}
51. f3 {[%clk 0:00:05.2]} 51... Ke6 {[%clk 0:00:02.5]} 0-1

[Event "*** Titled Tuesday Blitz"]
[Site "Chess.com"]
[Date "2021.03.30"]
[Round "5"]
[White "kakorrhaphiophobie"]
[Black "CzechmVIII"]
[Result "1-0"]
[WhiteElo "2345"]
[BlackElo "2211"]
[TimeControl "180+1"]
[EndTime "10:56:28 PDT"]
[Termination "kakorrhaphiophobie won on time"]

1. d4 {[%clk 0:03:00.9]} 1... Nf6 {[%clk 0:02:59.8]} 2. c4 {[%clk 0:03:00.9]}
2... c5 {[%clk 0:02:59.9]} 3. d5 {[%clk 0:03:00.9]} 3... b5 {[%clk 0:03:00.6]}
4. cxb5 {[%clk 0:03:01.8]} 4... a6 {[%clk 0:03:01.1]} 5. bxa6 {[%clk 0:03:02.7]}
5... g6 {[%clk 0:03:01.1]} 6. Nc3 {[%clk 0:03:01.7]} 6... Bxa6 {[%clk 0:03:01]}
7. e4 {[%clk 0:03:01.5]} 7... Qa5 {[%clk 0:03:01]} 8. Bxa6 {[%clk 0:02:49]} 8...
Nxa6 {[%clk 0:03:00.8]} 9. e5 {[%clk 0:02:44.8]} 9... Ne4 {[%clk 0:02:56.4]} 10.
Ne2 {[%clk 0:02:33.8]} 10... Bg7 {[%clk 0:02:48.6]} 11. O-O {[%clk 0:02:09.8]}
11... Nxc3 {[%clk 0:02:42.8]} 12. Nxc3 {[%clk 0:02:06.1]} 12... O-O {[%clk
0:02:28.8]} 13. Qe2 {[%clk 0:01:56.9]} 13... d6 {[%clk 0:02:17]} 14. Bf4 {[%clk
0:01:34]} 14... Qb4 {[%clk 0:02:03.9]} 15. Bg3 {[%clk 0:01:09.9]} 15... Rfb8
{[%clk 0:01:30.1]} 16. Rab1 {[%clk 0:01:01]} 16... Rb6 {[%clk 0:01:20.2]} 17. h4
{[%clk 0:00:50]} 17... h5 {[%clk 0:01:19]} 18. e6 {[%clk 0:00:44.8]} 18... f5
{[%clk 0:01:12.2]} 19. Qd2 {[%clk 0:00:27.9]} 19... Nc7 {[%clk 0:00:55.7]} 20.
Rfc1 {[%clk 0:00:26.8]} 20... Qd4 {[%clk 0:00:49.6]} 21. Qg5 {[%clk 0:00:23]}
21... Qf6 {[%clk 0:00:45.9]} 22. Qxf6 {[%clk 0:00:16.4]} 22... Bxf6 {[%clk
0:00:46.2]} 23. a4 {[%clk 0:00:16]} 23... Rb4 {[%clk 0:00:44.2]} 24. Nb5 {[%clk
0:00:13.4]} 24... Nxd5 {[%clk 0:00:40.7]} 25. Rd1 {[%clk 0:00:12.5]} 25... Raxa4
{[%clk 0:00:28.8]} 26. Nxd6 {[%clk 0:00:13]} 26... f4 {[%clk 0:00:15.7]} 27.
Rxd5 {[%clk 0:00:11.4]} 27... exd6 {[%clk 0:00:13.6]} 28. Bh2 {[%clk 0:00:11]}
28... Rd4 {[%clk 0:00:13.8]} 29. Rd1 {[%clk 0:00:10.4]} 29... Rxd1+ {[%clk
0:00:13.5]} 30. Rxd1 {[%clk 0:00:10.1]} 30... Rd4 {[%clk 0:00:12.1]} 31. Rxd4
{[%clk 0:00:10.4]} 31... Bxd4 {[%clk 0:00:12.3]} 32. Bxf4 {[%clk 0:00:11.3]}
32... Kf8 {[%clk 0:00:12.7]} 33. Bxd6+ {[%clk 0:00:11.5]} 33... Ke8 {[%clk
0:00:13.2]} 34. b3 {[%clk 0:00:10.5]} 34... Bf6 {[%clk 0:00:12.2]} 35. g3 {[%clk
0:00:10.7]} 35... Bd4 {[%clk 0:00:11.7]} 36. Kf1 {[%clk 0:00:10.7]} 36... Bc3
{[%clk 0:00:10.4]} 37. Ke2 {[%clk 0:00:10.7]} 37... Bd4 {[%clk 0:00:10.7]} 38.
f3 {[%clk 0:00:10.8]} 38... Bg1 {[%clk 0:00:09.8]} 39. Kd3 {[%clk 0:00:11.1]}
39... Bd4 {[%clk 0:00:09.5]} 40. Kc4 {[%clk 0:00:11.5]} 40... Bf2 {[%clk
0:00:09.6]} 41. Kd5 {[%clk 0:00:10.9]} 41... Kd8 {[%clk 0:00:08.3]} 42. Ke5
{[%clk 0:00:09.7]} 42... Bxg3+ {[%clk 0:00:07.8]} 43. Kd5 {[%clk 0:00:09.7]}
43... Bxh4 {[%clk 0:00:07.8]} 44. Bxc5 {[%clk 0:00:09.8]} 44... Be7 {[%clk
0:00:07.1]} 45. Bb6+ {[%clk 0:00:05.4]} 45... Ke8 {[%clk 0:00:06.9]} 46. Bc7
{[%clk 0:00:06]} 46... h4 {[%clk 0:00:07.3]} 47. Bh2 {[%clk 0:00:04.5]} 47... g5
{[%clk 0:00:07.4]} 48. Ke5 {[%clk 0:00:04]} 48... Bd8 {[%clk 0:00:07.6]} 49. Kf5
{[%clk 0:00:04.3]} 49... Bb6 {[%clk 0:00:07]} 50. f4 {[%clk 0:00:04.5]} 50...
Bf2 {[%clk 0:00:07.9]} 51. fxg5 {[%clk 0:00:04.6]} 51... h3 {[%clk 0:00:07.7]}
52. Kg4 {[%clk 0:00:04.8]} 52... Kf8 {[%clk 0:00:07.4]} 53. Bd6+ {[%clk
0:00:04.3]} 53... Ke8 {[%clk 0:00:06.9]} 54. Kxh3 {[%clk 0:00:04.9]} 54... Be3
{[%clk 0:00:05.9]} 55. Kg4 {[%clk 0:00:05.6]} 55... Bd2 {[%clk 0:00:06]} 56. Kf5
{[%clk 0:00:06.3]} 56... Bb4 {[%clk 0:00:06.5]} 57. g6 {[%clk 0:00:07.2]} 57...
Bc5 {[%clk 0:00:06.9]} 58. Bxc5 {[%clk 0:00:06.7]} 1-0